[Event "23rd Hogeschool Zeeland Open 2019"]
[Site "Vlissingen"]
[Date "2019.08.08"]
[Round "7.9"]
[White "Van Baar, Esper"]
[Black "Grochal, Joey"]
[Result "1/2-1/2"]
[ECO "B48"]
[WhiteElo "2108"]
[BlackElo "2313"]
[Annotator "ChessBase"]
[PlyCount "81"]
[EventDate "2019.08.03"]
[EventType "swiss"]
[EventCountry "NED"]
[SourceTitle "playchess.com"]
[Source "ChessBase"]
[SourceQuality "1"]
[TimeControl "40/5400+30:1800+30"]

1. e4 {[%emt 0:00:00]} c5 {[%emt 0:00:00]} 2. Nf3 {[%emt 0:00:00]} e6 {[%emt 0:00:00]} 3. d4 {[%emt 0:00:06]} cxd4 {[%emt 0:00:00]} 4. Nxd4 {[%emt 0:00:04]} Nc6 {[%emt 0:00:00]} 5. Nc3 {[%emt 0:00:51]} Qc7 {[%emt 0:00:05]} 6. Be3 {[%emt 0:00:58]} a6 {[%emt 0:00:08]} 7. Qf3 {[%emt 0:00:27]} b5 {[%emt 0:00:08]} 8. Nxc6 {[%emt 0:00:54]} Qxc6 {[%emt 0:00:07]} 9. Bd3 {[%emt 0:00:54]} Ba3 {[%emt 0:01:58]} 10. Bc1 {[%emt 0:11:40]} Be7 {[%emt 0:05:16]} 11. Qg3 {[%emt 0:04:19]} Bb7 {[%emt 0:04:21]} 12. f3 {[%emt 0:01:12]} b4 {[%emt 0:08:58]} 13. Ne2 {[%emt 0:00:07]} Nf6 {[%emt 0:04:26]} 14. e5 {[%emt 0:04:09]} Nh5 {[%emt 0:00:24]} 15. Qg4 {[%emt 0:00:26]} g6 {[%emt 0:00:14]} 16. Be3 {[%emt 0:09:56]} Qc7 {[%emt 0:06:36]} 17. Qd4 {[%emt 0:04:18]} Rc8 {[%emt 0:02:41]} 18. Ng3 {[%emt 0:11:49]} Bc5 {[%emt 0:04:28]} 19. Qxc5 {[%emt 0:00:05]} Qxc5 {[%emt 0:00:06]} 20. Bxc5 {[%emt 0:00:03]} Rxc5 {[%emt 0:00:04]} 21. Nxh5 {[%emt 0:00:08]} Rxe5+ {[%emt 0:00:12]} 22. Kf2 {[%emt 0:00:35]} Rxh5 {[%emt 0:00:58]} 23. a3 {[%emt 0:00:06]} bxa3 {[%emt 0:03:14]} 24. Rxa3 {[%emt 0:00:04]} Ke7 {[%emt 0:00:26]} 25. Rb3 {[%emt 0:06:55]} Bd5 {[%emt 0:04:59]} 26. Ra3 {[%emt 0:09:51]} Rc8 {[%emt 0:01:50]} 27. Rxa6 {[%emt 0:04:51]} Bc4 {[%emt 0:00:08]} 28. Bxc4 {[%emt 0:00:08]} Rxc4 {[%emt 0:00:01]} 29. c3 {[%emt 0:00:34]} Rb5 {[%emt 0:00:55]} 30. Ra2 {[%emt 0:00:08]} d5 {[%emt 0:06:44]} 31. Ke3 {[%emt 0:03:24]} e5 {[%emt 0:03:11]} 32. Kd3 {[%emt 0:06:20]} h5 {[%emt 0:02:39]} 33. Re1 {[%emt 0:04:49]} Ke6 {[%emt 0:01:06]} 34. Ra6+ {[%emt 0:04:00]} Kf5 {[%emt 0:00:57]} 35. b4 {[%emt 0:01:52]} Rh4 {[%emt 0:05:19]} 36. h3 {[%emt 0:04:38]} f6 {[%emt 0:02:16]} 37. g4+ {[%emt 0:01:14]} Kg5 {[%emt 0:02:06]} 38. Rg1 {[%emt 0:03:02]} hxg4 {[%emt 0:08:50]} 39. Rxg4+ {[%emt 0:00:18]} Rxg4 {[%emt 0:00:04]} 40. hxg4 {[%emt 0:00:18]} Rb8 {[%emt 0:05:19]} 41. Rd6 {[%emt 0:11:15]} 1/2-1/2

[Event "23rd Hogeschool Zeeland Open 2019"]
[Site "Vlissingen"]
[Date "2019.08.08"]
[Round "7.11"]
[White "Lacrosse, Marc"]
[Black "Elgersma, Onno"]
[Result "0-1"]
[ECO "D24"]
[WhiteElo "2189"]
[BlackElo "2232"]
[Annotator "ChessBase"]
[PlyCount "42"]
[EventDate "2019.08.03"]
[EventType "swiss"]
[EventCountry "NED"]
[SourceTitle "playchess.com"]
[Source "ChessBase"]
[SourceQuality "1"]
[TimeControl "40/5400+30:1800+30"]

1. d4 {[%emt 0:00:00]} Nf6 {[%emt 0:00:00]} 2. c4 {[%emt 0:00:16]} e6 {[%emt 0:00:00]} 3. Nf3 {[%emt 0:01:18]} d5 {[%emt 0:00:00]} 4. Bg5 {[%emt 0:03:39]} dxc4 {[%emt 0:00:25]} 5. Nc3 {[%emt 0:02:02]} a6 {[%emt 0:00:16]} 6. a4 {[%emt 0:02:22]} Nc6 {[%emt 0:00:17]} 7. e3 {[%emt 0:08:14]} Na5 {[%emt 0:00:44]} 8. Nd2 {[%emt 0:14:08]} c5 {[%emt 0:14:59]} 9. Nxc4 {[%emt 0:22:01]} cxd4 {[%emt 0:15:24]} 10. Bxf6 {[%emt 0:14:04]} Qxf6 {[%emt 0:05:37]} 11. Qxd4 {[%emt 0:01:54]} Nxc4 {[%emt 0:13:56]} 12. Bxc4 {[%emt 0:03:08]} Bd7 {[%emt 0:05:55]} 13. O-O {[%emt 0:06:52]} Qxd4 {[%emt 0:01:05]} 14. exd4 {[%emt 0:00:06]} Rc8 {[%emt 0:00:15]} 15. Bb3 {[%emt 0:02:28]} Bb4 {[%emt 0:00:48]} 16. Rac1 {[%emt 0:02:55]} O-O {[%emt 0:01:28]} 17. Rfd1 {[%emt 0:01:03]} Rfd8 {[%emt 0:07:12]} 18. Kf1 {[%emt 0:00:53]} h6 {[%emt 0:04:06]} 19. Ke2 {[%emt 0:02:18]} Ba5 {[%emt 0:05:31]} 20. Ne4 {[%emt 0:06:21]} Bc6 {[%emt 0:01:11]} 21. Ke3 {[%emt 0:01:23]} Bb6 {[%emt 0:03:18]} 0-1

[Event "23rd Hogeschool Zeeland Open 2019"]
[Site "Vlissingen"]
[Date "2019.08.08"]
[Round "7.12"]
[White "Wunnink, Michael"]
[Black "Mityaev, Alexandr"]
[Result "1-0"]
[ECO "D13"]
[WhiteElo "2214"]
[BlackElo "2087"]
[Annotator "ChessBase"]
[PlyCount "65"]
[EventDate "2019.08.03"]
[EventType "swiss"]
[EventCountry "NED"]
[SourceTitle "playchess.com"]
[Source "ChessBase"]
[SourceQuality "1"]
[TimeControl "40/5400+30:1800+30"]

1. d4 {[%emt 0:00:00]} d5 {[%emt 0:01:06]} 2. c4 {[%emt 0:00:00]} c6 {[%emt 0:00:03]} 3. Nc3 {[%emt 0:00:00]} Nf6 {[%emt 0:00:04]} 4. cxd5 {[%emt 0:00:38]} cxd5 {[%emt 0:00:06]} 5. Bf4 {[%emt 0:00:14]} Nc6 {[%emt 0:00:38]} 6. e3 {[%emt 0:00:14]} a6 {[%emt 0:00:22]} 7. Be2 {[%emt 0:01:14]} Bf5 {[%emt 0:07:44]} 8. Nf3 {[%emt 0:02:58]} e6 {[%emt 0:02:17]} 9. Qb3 {[%emt 0:02:31]} Bb4 {[%emt 0:04:43]} 10. O-O {[%emt 0:06:43]} Qe7 {[%emt 0:00:55]} 11. Rfc1 {[%emt 0:13:32]} O-O {[%emt 0:08:45]} 12. Na4 {[%emt 0:06:00]} Na5 {[%emt 0:16:52]} 13. Qd1 {[%emt 0:00:26]} Nd7 {[%emt 0:09:33]} 14. Ne5 {[%emt 0:21:07]} Nxe5 {[%emt 0:02:24]} 15. Bxe5 {[%emt 0:04:01]} Rac8 {[%emt 0:01:03]} 16. a3 {[%emt 0:06:36]} Bd6 {[%emt 0:01:53]} 17. Bxd6 {[%emt 0:00:57]} Qxd6 {[%emt 0:00:43]} 18. Nc5 {[%emt 0:02:07]} Rc7 {[%emt 0:02:15]} 19. Qa4 {[%emt 0:05:10]} Qb6 {[%emt 0:11:45]} 20. b4 {[%emt 0:01:48]} Nc6 {[%emt 0:00:56]} 21. Qd1 {[%emt 0:04:44]} a5 {[%emt 0:03:09]} 22. Na4 {[%emt 0:01:33]} Qa7 {[%emt 0:04:33]} 23. b5 {[%emt 0:00:10]} Nxd4 {[%emt 0:00:14]} 24. Rxc7 {[%emt 0:01:18]} Qb8 {[%emt 0:02:41]} 25. b6 {[%emt 0:01:55]} Nc6 {[%emt 0:00:13]} 26. Nc5 {[%emt 0:00:43]} Rc8 {[%emt 0:00:39]} 27. Rxc8+ {[%emt 0:07:18]} Qxc8 {[%emt 0:00:01]} 28. Rc1 {[%emt 0:00:29]} h5 {[%emt 0:01:46]} 29. Bb5 {[%emt 0:01:20]} Ne5 {[%emt 0:00:57]} 30. Nd7 {[%emt 0:01:34]} Qxd7 {[%emt 0:01:18]} 31. Bxd7 {[%emt 0:00:10]} Nxd7 {[%emt 0:00:01]} 32. Rc8+ {[%emt 0:00:13]} Kh7 {[%emt 0:00:07]} 33. Qxh5# {[%emt 0:08:47]} 1-0

[Event "23rd Hogeschool Zeeland Open 2019"]
[Site "Vlissingen"]
[Date "2019.08.08"]
[Round "7.16"]
[White "Bezemer, Arno"]
[Black "Berghuis, Marten"]
[Result "1-0"]
[ECO "A69"]
[WhiteElo "2245"]
[BlackElo "2031"]
[Annotator "ChessBase"]
[PlyCount "63"]
[EventDate "2019.08.03"]
[EventType "swiss"]
[EventCountry "NED"]
[SourceTitle "playchess.com"]
[Source "ChessBase"]
[SourceQuality "1"]
[TimeControl "40/5400+30:1800+30"]

1. c4 {[%emt 0:00:01]} Nf6 {[%emt 0:00:23]} 2. Nc3 {[%emt 0:00:21]} g6 {[%emt 0:00:09]} 3. e4 {[%emt 0:00:39]} d6 {[%emt 0:00:32]} 4. d4 {[%emt 0:00:10]} Bg7 {[%emt 0:00:20]} 5. f4 {[%emt 0:01:26]} O-O {[%emt 0:01:31]} 6. Nf3 {[%emt 0:00:04]} c5 {[%emt 0:00:57]} 7. d5 {[%emt 0:00:06]} e6 {[%emt 0:03:11]} 8. Be2 {[%emt 0:00:21]} exd5 {[%emt 0:00:21]} 9. cxd5 {[%emt 0:00:06]} Re8 {[%emt 0:03:19]} 10. e5 {[%emt 0:00:47]} dxe5 {[%emt 0:05:38]} 11. fxe5 {[%emt 0:00:07]} Ng4 {[%emt 0:03:54]} 12. e6 {[%emt 0:00:29]} fxe6 {[%emt 0:01:46]} 13. d6 {[%emt 0:00:27]} Bd7 {[%emt 0:08:10]} 14. Ng5 {[%emt 0:07:53]} Ne5 {[%emt 0:04:18]} 15. O-O {[%emt 0:01:24]} h6 {[%emt 0:04:58]} 16. Nge4 {[%emt 0:00:24]} c4 {[%emt 0:06:52]} 17. Be3 {[%emt 0:04:04]} Kh7 {[%emt 0:09:46]} 18. Qd2 {[%emt 0:06:36]} Nbc6 {[%emt 0:07:59]} 19. Rf4 {[%emt 0:04:16]} Rf8 {[%emt 0:02:06]} 20. Rxf8 {[%emt 0:01:48]} Qxf8 {[%emt 0:00:39]} 21. Nc5 {[%emt 0:04:25]} Qc8 {[%emt 0:06:32]} 22. Rf1 {[%emt 0:05:23]} b6 {[%emt 0:01:48]} 23. Nxd7 {[%emt 0:00:09]} Qxd7 {[%emt 0:00:24]} 24. Ne4 {[%emt 0:00:09]} Qd8 {[%emt 0:04:53]} 25. Qe1 {[%emt 0:17:59]} Rb8 {[%emt 0:03:31]} 26. Qg3 {[%emt 0:00:56]} Rb7 {[%emt 0:06:17]} 27. Qh3 {[%emt 0:01:13]} b5 {[%emt 0:03:51]} 28. Ng5+ {[%emt 0:06:07]} Kg8 {[%emt 0:00:25]} 29. Qxe6+ {[%emt 0:01:21]} Kh8 {[%emt 0:00:25]} 30. Ne4 {[%emt 0:03:51]} Rd7 {[%emt 0:02:59]} 31. Qh3 {[%emt 0:00:57]} Kh7 {[%emt 0:01:08]} 32. Ng5+ {[%emt 0:01:23]} 1-0

[Event "23rd Hogeschool Zeeland Open 2019"]
[Site "Vlissingen"]
[Date "2019.08.09"]
[Round "8.4"]
[White "De Jong, Migchiel"]
[Black "Ikonnikov, Vyacheslav"]
[Result "1/2-1/2"]
[ECO "E16"]
[WhiteElo "2345"]
[BlackElo "2499"]
[Annotator "ChessBase"]
[PlyCount "49"]
[EventDate "2019.08.03"]
[EventType "swiss"]
[EventCountry "NED"]
[SourceTitle "playchess.com"]
[Source "ChessBase"]
[SourceQuality "1"]
[TimeControl "40/5400+30:1800+30"]

1. Nf3 {[%emt 0:00:00]} Nf6 {[%emt 0:00:00]} 2. c4 {[%emt 0:00:11]} e6 {[%emt 0:00:34]} 3. g3 {[%emt 0:00:22]} b6 {[%emt 0:00:42]} 4. Bg2 {[%emt 0:00:31]} Bb7 {[%emt 0:00:06]} 5. d4 {[%emt 0:00:58]} Bb4+ {[%emt 0:00:26]} 6. Bd2 {[%emt 0:00:23]} a5 {[%emt 0:00:13]} 7. O-O {[%emt 0:00:48]} O-O {[%emt 0:00:13]} 8. Nc3 {[%emt 0:01:25]} d6 {[%emt 0:03:15]} 9. b3 {[%emt 0:05:19]} Nbd7 {[%emt 0:05:00]} 10. a3 {[%emt 0:00:21]} Bxc3 {[%emt 0:01:47]} 11. Bxc3 {[%emt 0:00:09]} Qb8 {[%emt 0:00:27]} 12. Re1 {[%emt 0:04:38]} Re8 {[%emt 0:03:59]} 13. Qc2 {[%emt 0:02:07]} Be4 {[%emt 0:01:19]} 14. Qb2 {[%emt 0:00:39]} b5 {[%emt 0:01:26]} 15. cxb5 {[%emt 0:05:47]} Qxb5 {[%emt 0:03:43]} 16. a4 {[%emt 0:01:48]} Qb7 {[%emt 0:22:39]} 17. Qd2 {[%emt 0:09:28]} Qa7 {[%emt 0:06:56]} 18. Rec1 {[%emt 0:05:26]} Reb8 {[%emt 0:01:42]} 19. Qd1 {[%emt 0:01:01]} Nd5 {[%emt 0:06:21]} 20. Ne5 {[%emt 0:05:49]} Bxg2 {[%emt 0:05:24]} 21. Nxd7 {[%emt 0:00:23]} Rd8 {[%emt 0:02:00]} 22. Kxg2 {[%emt 0:00:20]} Rxd7 {[%emt 0:00:20]} 23. e4 {[%emt 0:00:48]} Ne7 {[%emt 0:00:55]} 24. d5 {[%emt 0:02:40]} e5 {[%emt 0:06:23]} 25. f4 {[%emt 0:06:36]} 1/2-1/2

[Event "23rd Hogeschool Zeeland Open 2019"]
[Site "Vlissingen"]
[Date "2019.08.09"]
[Round "8.5"]
[White "Harika, Dronavalli"]
[Black "Wunnink, Michael"]
[Result "1/2-1/2"]
[ECO "D31"]
[WhiteElo "2492"]
[BlackElo "2214"]
[Annotator "ChessBase"]
[PlyCount "39"]
[EventDate "2019.08.03"]
[EventType "swiss"]
[EventCountry "NED"]
[SourceTitle "playchess.com"]
[Source "ChessBase"]
[SourceQuality "1"]
[TimeControl "40/5400+30:1800+30"]

1. c4 {[%emt 0:00:00]} e6 {[%emt 0:00:01]} 2. Nc3 {[%emt 0:00:17]} d5 {[%emt 0:00:14]} 3. d4 {[%emt 0:00:15]} Be7 {[%emt 0:00:17]} 4. cxd5 {[%emt 0:00:42]} exd5 {[%emt 0:00:06]} 5. Bf4 {[%emt 0:00:07]} c6 {[%emt 0:00:31]} 6. e3 {[%emt 0:00:11]} Bd6 {[%emt 0:01:08]} 7. Bg3 {[%emt 0:10:13]} Ne7 {[%emt 0:02:02]} 8. Bd3 {[%emt 0:01:33]} Bf5 {[%emt 0:10:02]} 9. Nf3 {[%emt 0:00:50]} Bxd3 {[%emt 0:10:05]} 10. Qxd3 {[%emt 0:01:33]} Nc8 {[%emt 0:00:44]} 11. O-O-O {[%emt 0:18:32]} O-O {[%emt 0:05:32]} 12. e4 {[%emt 0:00:21]} Na6 {[%emt 0:24:07]} 13. a3 {[%emt 0:05:00]} Nb6 {[%emt 0:03:57]} 14. Bxd6 {[%emt 0:09:29]} Qxd6 {[%emt 0:00:11]} 15. e5 {[%emt 0:00:05]} Qh6+ {[%emt 0:04:44]} 16. Qd2 {[%emt 0:09:16]} Qg6 {[%emt 0:05:48]} 17. Qc2 {[%emt 0:04:59]} Qh6+ {[%emt 0:01:30]} 18. Qd2 {[%emt 0:01:12]} Qg6 {[%emt 0:00:16]} 19. Qc2 {[%emt 0:05:03]} Qh6+ {[%emt 0:00:17]} 20. Qd2 {[%emt 0:01:16]} 1/2-1/2

[Event "23rd Hogeschool Zeeland Open 2019"]
[Site "Vlissingen"]
[Date "2019.08.09"]
[Round "8.8"]
[White "Stillger, Bernhard"]
[Black "Leenhouts, Koen"]
[Result "1-0"]
[ECO "E08"]
[WhiteElo "2199"]
[BlackElo "2426"]
[Annotator "RC"]
[PlyCount "144"]
[EventDate "2019.08.03"]
[EventType "swiss"]
[EventCountry "NED"]
[SourceTitle "playchess.com"]
[Source "ChessBase"]
[SourceQuality "1"]
[TimeControl "40/5400+30:1800+30"]

1. Nf3 {[%emt 0:00:18]} Nf6 {[%emt 0:00:47]} 2. c4 {[%emt 0:00:09]} e6 {[%emt 0:00:10]} 3. g3 {[%emt 0:00:23]} d5 {[%emt 0:00:07]} 4. Bg2 {[%emt 0:00:08]} Be7 {[%emt 0:00:35]} 5. O-O {[%emt 0:00:17]} O-O {[%emt 0:00:09]} 6. b3 {[%emt 0:00:38]} Nbd7 {[%emt 0:02:28]} 7. d4 {[%emt 0:06:55]} c6 {[%emt 0:01:37]} 8. Qc2 {[%emt 0:04:05]} b6 {[%emt 0:01:16]} 9. Rd1 {[%emt 0:07:20]} Bb7 {[%emt 0:00:44]} 10. Nc3 {[%emt 0:00:22]} Rc8 {[%emt 0:02:28]} 11. e4 {[%emt 0:01:08]} c5 {[%emt 0:05:29]} 12. exd5 {[%emt 0:02:56]} exd5 {[%emt 0:00:09]} 13. Bb2 {[%emt 0:01:46]} dxc4 {[%emt 0:08:48]} 14. d5 {[%emt 0:01:34]} cxb3 {[%emt 0:17:41]} 15. axb3 {[%emt 0:00:33]} Ne8 {[%emt 0:00:10]} 16. Nb5 {[%emt 0:10:00]} a6 {[%emt 0:02:08]} 17. Na7 {[%emt 0:03:23]} Nd6 {[%emt 0:04:55]} 18. Nxc8 {[%emt 0:05:50]} Bxc8 {[%emt 0:00:02]} 19. Ne5 {[%emt 0:08:27]} Nxe5 {[%emt 0:00:27]} 20. Bxe5 {[%emt 0:00:18]} Bf6 {[%emt 0:00:10]} 21. Qb2 {[%emt 0:02:53]} Bxe5 {[%emt 0:00:57]} 22. Qxe5 {[%emt 0:00:03]} Re8 {[%emt 0:00:06]} 23. Qf4 {[%emt 0:01:35]} Nb5 {[%emt 0:08:28]} 24. Re1 {[%emt 0:07:32]} Rf8 {[%emt 0:10:23]} 25. b4 {[%emt 0:04:55]} g5 {[%emt 0:01:10]} 26. Qc4 {[%emt 0:02:00]} Nd6 {[%emt 0:00:16]} 27. Qb3 {[%emt 0:01:47]} cxb4 {[%emt 0:04:53]} 28. Qxb4 {[%emt 0:00:14]} a5 {[%emt 0:00:05]} 29. Qd4 {[%emt 0:02:42]} Bd7 {[%emt 0:08:21]} 30. Qe5 {[%emt 0:03:36]} Nc4 {[%emt 0:00:47]} 31. Qd4 {[%emt 0:01:57]} Nd6 {[%emt 0:01:11]} 32. Bf1 {[%emt 0:01:25]} b5 {[%emt 0:02:38]} 33. Qc5 {[%emt 0:04:21]} Be8 {[%emt 0:06:23]} 34. Bd3 {[%emt 0:02:01]} Qf6 {[%emt 0:00:50]} 35. Qe3 {[%emt 0:06:24]} a4 {[%emt 0:00:29]} 36. Qc5 {[%emt 0:01:50]} Bd7 {[%emt 0:00:48]} 37. Qc7 {[%emt 0:00:51]} Bh3 {[%emt 0:02:18]} 38. Qb6 {[%emt 0:01:59]} Kg7 {[%emt 0:00:02]} 39. Bf1 {[%emt 0:01:15]} Bxf1 {[%emt 0:01:39]} 40. Kxf1 {[%emt 0:00:28]} Rc8 {[%emt 0:00:54]} 41. Ra2 {[%emt 0:32:06]} h5 {[%emt 0:35:06]} 42. Qe3 {[%emt 0:00:00]} Rc3 {[%emt 0:00:00]} 43. Qe5 {[%emt 0:00:00]} Rd3 {[%emt 0:00:00]} 44. Qe2 {[%emt 0:00:00]} Rf3 {[%emt 0:00:00]} 45. Kg2 {[%emt 0:00:00]} g4 {[%emt 0:00:00]} 46. Qe5 {[%emt 0:00:00]} Rd3 {[%emt 0:00:00]} 47. Kg1 {[%emt 0:00:00]} Qxe5 {[%emt 0:00:00]} 48. Rxe5 {[%emt 0:00:00]} a3 {[%emt 0:00:00]} 49. Rxh5 {[%emt 0:00:00]} f5 {[%emt 0:00:00]} 50. Rg5+ {[%emt 0:00:30]} Kf7 {[%emt 0:00:00]} 51. Rh5 {[%emt 0:00:44]} b4 {[%emt 0:00:00]} 52. Rh7+ {[%emt 0:01:31]} Kf6 {[%emt 0:00:00]} 53. Re2 {[%emt 0:01:36]} Ne4 {[%emt 0:00:00]} 54. Ra7 {[%emt 0:02:03]} Rxd5 {[%emt 0:00:00]} 55. Kg2 {[%emt 0:00:23]} Rd3 {[%emt 0:00:38]} 56. h3 {[%emt 0:00:46]} gxh3+ {[%emt 0:01:18]} 57. Kxh3 {[%emt 0:00:10]} Rb3 {[%emt 0:01:13]} 58. Rc2 {[%emt 0:00:39]} Rc3 {[%emt 0:00:19]} 59. Re2 {[%emt 0:00:47]} Rc6 {[%emt 0:02:23]} 60. Rb7 {[%emt 0:01:09]} Nc3 {[%emt 0:02:00]} 61. Re8 {[%emt 0:00:02]} a2 {[%emt 0:00:54]} 62. Ra8 {[%emt 0:00:13]} Rc4 {[%emt 0:00:11]} 63. f4 {[%emt 0:00:41]} Ke6 {[%emt 0:00:26]} 64. Ra5 {[%emt 0:00:30]} Kd6 {[%emt 0:01:38]} 65. Kh4 {[%emt 0:00:46]} Kc6 {[%emt 0:00:25]} 66. Rb8 {[%emt 0:00:16]} Rd4 {[%emt 0:02:03]} 67. Kh5 {[%emt 0:00:51]} b3 {[%emt 0:01:04]} 68. Rxb3 {[%emt 0:00:15]} Na4 {[%emt 0:00:02]} 69. Ra3 {[%emt 0:00:16]} Nb6 {[%emt 0:00:22]} 70. Rxa2 {[%emt 0:00:07]} Rd3 {[%emt 0:00:09]} 71. Rc2+ {[%emt 0:00:27]} Kb7 {[%emt 0:00:06]} 72. Rb2 {[%emt 0:00:34]} Kc6 {[%emt 0:02:45]} 1-0

[Event "23rd Hogeschool Zeeland Open 2019"]
[Site "Vlissingen"]
[Date "2019.08.09"]
[Round "8.9"]
[White "Grochal, Joey"]
[Black "Zevenhuizen, Daniel"]
[Result "1-0"]
[ECO "D96"]
[WhiteElo "2313"]
[BlackElo "2152"]
[Annotator "ChessBase"]
[PlyCount "67"]
[EventDate "2019.08.03"]
[EventType "swiss"]
[EventCountry "NED"]
[SourceTitle "playchess.com"]
[Source "ChessBase"]
[SourceQuality "1"]
[TimeControl "40/5400+30:1800+30"]

1. d4 {[%emt 0:00:00]} g6 {[%emt 0:04:12]} 2. c4 {[%emt 0:00:00]} Bg7 {[%emt 0:01:40]} 3. Nf3 {[%emt 0:01:01]} c6 {[%emt 0:02:03]} 4. Nc3 {[%emt 0:01:10]} d5 {[%emt 0:00:25]} 5. cxd5 {[%emt 0:00:32]} cxd5 {[%emt 0:00:30]} 6. Bf4 {[%emt 0:00:21]} Nf6 {[%emt 0:01:59]} 7. e3 {[%emt 0:00:38]} O-O {[%emt 0:01:50]} 8. Qb3 {[%emt 0:04:25]} Nc6 {[%emt 0:04:20]} 9. Rc1 {[%emt 0:01:28]} Na5 {[%emt 0:16:35]} 10. Qb4 {[%emt 0:05:43]} Nc6 {[%emt 0:11:16]} 11. Qb3 {[%emt 0:07:06]} Na5 {[%emt 0:00:06]} 12. Qa3 {[%emt 0:00:07]} Bf5 {[%emt 0:14:25]} 13. h3 {[%emt 0:06:36]} Rc8 {[%emt 0:05:14]} 14. Nd2 {[%emt 0:02:41]} Ne4 {[%emt 0:02:28]} 15. Ndxe4 {[%emt 0:00:42]} Bxe4 {[%emt 0:00:04]} 16. b3 {[%emt 0:21:20]} Bf5 {[%emt 0:07:29]} 17. Be2 {[%emt 0:06:22]} f6 {[%emt 0:09:58]} 18. O-O {[%emt 0:02:49]} e5 {[%emt 0:00:19]} 19. Bg3 {[%emt 0:10:39]} exd4 {[%emt 0:00:21]} 20. exd4 {[%emt 0:00:02]} Bh6 {[%emt 0:00:14]} 21. f4 {[%emt 0:00:01]} Kh8 {[%emt 0:00:52]} 22. Bf3 {[%emt 0:03:58]} Be4 {[%emt 0:02:05]} 23. Bxe4 {[%emt 0:04:51]} dxe4 {[%emt 0:00:04]} 24. d5 {[%emt 0:01:26]} Qb6+ {[%emt 0:03:12]} 25. Kh2 {[%emt 0:01:15]} Qe3 {[%emt 0:00:13]} 26. Qxa5 {[%emt 0:00:51]} b6 {[%emt 0:00:06]} 27. Qb4 {[%emt 0:00:56]} a5 {[%emt 0:00:03]} 28. Qxe4 {[%emt 0:00:11]} Rxc3 {[%emt 0:00:56]} 29. Qxe3 {[%emt 0:00:05]} Rxe3 {[%emt 0:00:04]} 30. Rfd1 {[%emt 0:00:53]} g5 {[%emt 0:01:13]} 31. f5 {[%emt 0:03:53]} Re2 {[%emt 0:02:24]} 32. d6 {[%emt 0:01:53]} g4 {[%emt 0:00:03]} 33. Rc4 {[%emt 0:01:58]} gxh3 {[%emt 0:00:05]} 34. d7 {[%emt 0:00:59]} 1-0

[Event "23rd Hogeschool Zeeland Open 2019"]
[Site "Vlissingen"]
[Date "2019.08.09"]
[Round "8.10"]
[White "Mijnster, Niels"]
[Black "Grooten, Herman"]
[Result "1/2-1/2"]
[ECO "E21"]
[WhiteElo "2089"]
[BlackElo "2310"]
[Annotator "ChessBase"]
[PlyCount "126"]
[EventDate "2019.08.03"]
[EventType "swiss"]
[EventCountry "NED"]
[SourceTitle "playchess.com"]
[Source "ChessBase"]
[SourceQuality "1"]
[TimeControl "40/5400+30:1800+30"]

1. d4 {[%emt 0:00:00]} Nf6 {[%emt 0:00:00]} 2. c4 {[%emt 0:00:47]} e6 {[%emt 0:00:00]} 3. Nf3 {[%emt 0:00:03]} b6 {[%emt 0:00:00]} 4. Nc3 {[%emt 0:03:40]} Bb4 {[%emt 0:00:20]} 5. g3 {[%emt 0:01:32]} Bxc3+ {[%emt 0:02:29]} 6. bxc3 {[%emt 0:00:04]} Bb7 {[%emt 0:00:51]} 7. Bg2 {[%emt 0:02:00]} d6 {[%emt 0:00:20]} 8. Ba3 {[%emt 0:05:27]} c5 {[%emt 0:02:44]} 9. O-O {[%emt 0:08:15]} Nc6 {[%emt 0:03:36]} 10. Nd2 {[%emt 0:05:15]} Qd7 {[%emt 0:02:13]} 11. Nb3 {[%emt 0:01:55]} Ne7 {[%emt 0:04:29]} 12. Qd3 {[%emt 0:07:49]} Bxg2 {[%emt 0:03:39]} 13. Kxg2 {[%emt 0:00:01]} Rc8 {[%emt 0:00:42]} 14. dxc5 {[%emt 0:08:32]} dxc5 {[%emt 0:01:03]} 15. Qxd7+ {[%emt 0:04:48]} Nxd7 {[%emt 0:00:44]} 16. f4 {[%emt 0:04:00]} Nf5 {[%emt 0:05:03]} 17. Kf3 {[%emt 0:02:54]} Nd6 {[%emt 0:00:51]} 18. Nd2 {[%emt 0:01:37]} f5 {[%emt 0:00:31]} 19. e4 {[%emt 0:02:35]} fxe4+ {[%emt 0:08:57]} 20. Nxe4 {[%emt 0:00:01]} Nxc4 {[%emt 0:00:21]} 21. Bc1 {[%emt 0:01:35]} h6 {[%emt 0:01:44]} 22. Nd2 {[%emt 0:04:04]} Nxd2+ {[%emt 0:03:34]} 23. Bxd2 {[%emt 0:00:01]} Rd8 {[%emt 0:03:27]} 24. Be3 {[%emt 0:02:16]} Nf6 {[%emt 0:00:57]} 25. c4 {[%emt 0:05:02]} Kd7 {[%emt 0:04:17]} 26. a4 {[%emt 0:05:57]} a5 {[%emt 0:03:46]} 27. Rad1+ {[%emt 0:10:09]} Kc7 {[%emt 0:05:21]} 28. Bc1 {[%emt 0:00:01]} Nd7 {[%emt 0:10:43]} 29. Bb2 {[%emt 0:00:42]} Rhg8 {[%emt 0:00:28]} 30. Rfe1 {[%emt 0:00:53]} Rde8 {[%emt 0:00:56]} 31. g4 {[%emt 0:05:59]} g5 {[%emt 0:03:40]} 32. fxg5 {[%emt 0:02:04]} hxg5 {[%emt 0:03:10]} 33. Be5+ {[%emt 0:01:39]} Kd8 {[%emt 0:02:42]} 34. Kg3 {[%emt 0:03:00]} Rg6 {[%emt 0:04:38]} 35. Re4 {[%emt 0:01:31]} Ke7 {[%emt 0:01:39]} 36. Bd6+ {[%emt 0:00:25]} Kf7 {[%emt 0:00:09]} 37. Bc7 {[%emt 0:00:17]} Re7 {[%emt 0:02:21]} 38. Re3 {[%emt 0:01:14]} Ke8 {[%emt 0:05:20]} 39. Rd6 {[%emt 0:00:40]} Rf6 {[%emt 0:01:03]} 40. Re4 {[%emt 0:00:37]} e5 {[%emt 0:04:12]} 41. Rxf6 {[%emt 0:05:14]} Nxf6 {[%emt 0:00:08]} 42. Rxe5 {[%emt 0:00:06]} Ne4+ {[%emt 0:00:36]} 43. Kg2 {[%emt 0:01:43]} Rxe5 {[%emt 0:02:10]} 44. Bxe5 {[%emt 0:00:02]} Nd2 {[%emt 0:00:53]} 45. Bf6 {[%emt 0:01:17]} Nxc4 {[%emt 0:00:42]} 46. Bxg5 {[%emt 0:02:17]} Nb2 {[%emt 0:00:23]} 47. h4 {[%emt 0:01:27]} Nxa4 {[%emt 0:00:15]} 48. h5 {[%emt 0:08:58]} Nc3 {[%emt 0:02:41]} 49. Kf3 {[%emt 0:08:10]} Kf7 {[%emt 0:03:47]} 50. Bd8 {[%emt 0:01:37]} a4 {[%emt 0:02:48]} 51. g5 {[%emt 0:00:12]} a3 {[%emt 0:01:12]} 52. g6+ {[%emt 0:03:11]} Kg7 {[%emt 0:03:55]} 53. Bc7 {[%emt 0:00:40]} Nd5 {[%emt 0:01:06]} 54. Be5+ {[%emt 0:00:14]} Kh6 {[%emt 0:00:24]} 55. Ke4 {[%emt 0:01:28]} Ne7 {[%emt 0:00:33]} 56. Kd3 {[%emt 0:00:29]} b5 {[%emt 0:02:56]} 57. Kc2 {[%emt 0:01:22]} Nf5 {[%emt 0:03:10]} 58. Kb3 {[%emt 0:00:35]} b4 {[%emt 0:00:06]} 59. Bf6 {[%emt 0:00:27]} Ng3 {[%emt 0:09:47]} 60. Be7 {[%emt 0:00:24]} Ne4 {[%emt 0:06:31]} 61. Bf8+ {[%emt 0:00:01]} Kxh5 {[%emt 0:00:07]} 62. g7 {[%emt 0:00:07]} c4+ {[%emt 0:00:26]} 63. Kxb4 {[%emt 0:01:11]} Nf6 {[%emt 0:00:54]} 1/2-1/2